fUSD/lending_fUSD_20250313
["ID","MTS","AMOUNT","RATE_DAILY","PERIOD"]
[356116888,1741909983149,-500.0,0.00026468,3]
[356116889,1741909983159,-500.0,0.00026468,3]
[356116890,1741909983169,-1757.22,0.00026468,3]
[356116891,1741909983179,-500.0,0.00026468,3]
[356116892,1741909983189,-445.19583807,0.00026468,3]
[356116893,1741909983199,-500.0,0.00026468,3]
[356116894,1741909983209,-500.0,0.00026468,3]
[356116895,1741909983220,-500.0,0.00026468,3]
[356116896,1741909983230,-501.8,0.00026468,3]
[356116897,1741909983241,-500.0,0.00026468,3]
[356116898,1741909983251,-1962.2,0.00026468,3]
[356116899,1741909983261,-277.29799408,0.00026468,3]
[356116900,1741909983271,-500.0,0.00026468,3]
[356116901,1741909983281,-500.0,0.00026468,3]
[356116902,1741909983291,-1313.89,0.00026468,3]
[356116903,1741909983301,-500.0,0.00026468,3]
[356116904,1741909983310,-500.0,0.00026468,3]
[356116905,1741909983320,-500.0,0.00026468,3]
[356116906,1741909983330,-500.0,0.00026468,3]
[356116907,1741909983340,-1156.75,0.00026468,3]
[356116908,1741909983349,-429.47784133,0.00026468,3]
[356116909,1741909983367,-70.52215867,0.00026468,3]
[356116910,1741909983377,-827.88,0.00026468,3]
[356116911,1741909983387,-500.0,0.00026468,3]
[356116912,1741909983397,-500.0,0.00026468,3]
[356116913,1741909983407,-895.24,0.00026468,3]
[356116914,1741909983417,-500.0,0.00026468,3]
[356116915,1741909983429,-1012.87,0.00026468,3]
[356116916,1741909983439,-1069.23,0.00026468,3]
[356116917,1741909983449,-605.55,0.00026468,3]
[356116918,1741909983460,-500.0,0.00026468,3]
[356116919,1741909983475,-1008.81,0.00026468,3]
[356116920,1741909983485,-866.31,0.00026468,3]
[356116921,1741909983495,-500.0,0.00026468,3]
[356116922,1741909983504,-500.0,0.00026468,3]
[356116923,1741909983516,-404.88068317,0.00026477,3]
[356116924,1741909983528,-949.16931683,0.00026477,3]
[356116925,1741909983538,-168.41924865,0.00026477,3]
[356116926,1741909983550,-500.0,0.00026477,3]
[356116927,1741909983560,-500.0,0.00026477,3]
[356116928,1741909983570,-519.26471633,0.00026477,3]
[356116929,1741909983580,-500.0,0.00026477,3]
[356116930,1741909983590,-500.0,0.00026477,3]
[356116931,1741909983600,-262.94243847,0.00026477,3]
[356116932,1741909983609,-427.60427972,0.00026477,3]
[356116933,1741909983648,-72.39572028,0.00026477,3]
[356116934,1741909983657,-527.55,0.00026477,3]
[356116935,1741909983667,-500.0,0.00026477,3]
[356116936,1741909983677,-500.0,0.00026477,3]
[356116937,1741909983687,-500.0,0.00026477,3]
[356116938,1741909983696,-862.02,0.00026477,3]
[356116939,1741909983706,-500.0,0.00026477,3]
[356116940,1741909983716,-437.63427972,0.00026477,3]
[356116941,1741909983985,-1125.11572028,0.00026477,3]
[356116942,1741909983996,-487.02480972,0.00026477,3]
[356116943,1741909984008,-12.97519028,0.00026477,3]
[356116944,1741909984019,-500.0,0.00026477,3]
[356116945,1741909984030,-500.0,0.00026477,3]
[356116946,1741909984040,-500.0,0.00026477,3]
[356116947,1741909984050,-500.0,0.00026477,3]
[356116948,1741909984060,-226.12741493,0.00026477,3]
[356116949,1741909984072,-273.87258507,0.00026477,3]
[356116950,1741909984082,-500.0,0.00026477,3]
[356116951,1741909984092,-500.0,0.00026477,3]
[356116952,1741909984102,-500.0,0.00026477,3]
[356116953,1741909984111,-500.0,0.00026477,3]
[356116954,1741909984121,-526.4,0.00026477,3]
[356116955,1741909984131,-500.0,0.00026477,3]
[356116956,1741909984140,-886.28,0.00026477,3]
[356116957,1741909984150,-500.0,0.00026477,3]
[356116958,1741909984161,-215.18,0.00026477,3]
[356116959,1741909984170,-500.0,0.00026477,3]
[356116960,1741909984180,-910.76741447,0.00026477,3]
[356116961,1741909984192,-238.19258553,0.00026477,3]
[356116962,1741909984202,-500.0,0.00026477,3]
[356116963,1741909984212,-500.0,0.00026477,3]
[356116964,1741909984222,-521.42,0.00026477,3]
[356116965,1741909984232,-396.13096307,0.00026477,3]
[356116966,1741909984244,-169.25901787,0.00026477,3]
[356116967,1741909984254,-500.0,0.00026477,3]
[356116968,1741909984264,-169.69098213,0.00026477,3]
[356116969,1741909984276,-330.30901787,0.00026477,3]
[356116970,1741909984286,-287.19097453,0.00026477,3]
[356116971,1741909984298,-248.04902547,0.00026477,3]
[356116972,1741909984308,-154.46250918,0.00026477,3]
[356116973,1741909985504,-920.46,0.00024998,3]
[356116974,1741909985515,-500.0,0.00025025,3]
[356116975,1741909985524,-500.0,0.00025025,3]
[356116976,1741909985533,-500.0,0.00025026,3]
[356116977,1741909985543,-500.0,0.00025052,3]
[356116978,1741909985554,-500.0,0.00025052,3]
[356116979,1741909985565,-360.26,0.00025054,3]
[356116980,1741909985574,-500.0,0.0002508,3]
[356116981,1741909985585,-344.44,0.00025107,3]
[356116982,1741909985595,-500.0,0.00026276,3]
[356116983,1741909985604,-500.0,0.00026303,3]
[356116984,1741909985614,-500.0,0.00026331,3]
[356116985,1741909985623,-500.0,0.00026358,3]
[356116986,1741909985633,-524.86,0.00026386,3]
[356116987,1741909985642,-345.53749082,0.00026477,3]
[356116988,1741909985651,-500.0,0.00026477,3]
[356116989,1741909985660,-500.0,0.00026477,3]
[356116990,1741909985669,-500.0,0.00026477,3]
[356116991,1741909985678,-500.0,0.00026477,3]
[356116992,1741909985688,-630.29,0.00026477,3]
[356116993,1741909985697,-500.0,0.00026477,3]
[356116994,1741909985707,-636.65,0.00026477,3]
[356116995,1741909985718,-500.0,0.00026477,3]
[356116996,1741909985727,-760.49,0.00026477,3]
[356116997,1741909985737,-500.0,0.00026477,3]
[356116998,1741909985746,-500.0,0.00026477,3]
[356116999,1741909985755,-766.74,0.00026477,3]
[356117000,1741909985766,-500.0,0.00026477,3]
[356117001,1741909985775,-1057.73,0.00026477,3]
[356117002,1741909985785,-250.72904118,0.00026477,3]
[356117003,1741909985796,-249.27095882,0.00026477,3]
[356117004,1741909985806,-500.0,0.00026477,3]
[356117005,1741909985816,-760.28,0.00026477,3]
[356117006,1741909985825,-972.22,0.00026477,3]
[356117007,1741909985835,-280.21967474,0.00026477,3]
[356117008,1741909985847,-219.78032526,0.00026477,3]
[356117009,1741909985856,-608.91754474,0.00026477,3]
[356117010,1741909985869,-651.73245526,0.00026477,3]
[356117011,1741909985878,-500.0,0.00026477,3]
[356117012,1741909985888,-575.25810404,0.00026477,3]
[356117013,1741909985898,-500.0,0.00026477,3]
[356117014,1741909985907,-500.0,0.00026477,3]
[356117015,1741909985917,-569.74425418,0.00026477,3]
[356117016,1741909985927,-702.58,0.00026477,3]
[356117017,1741909985936,-500.0,0.00026477,3]
[356117018,1741909985946,-200.68518652,0.00026477,3]
[356117019,1741909985959,-299.31481348,0.00026477,3]
[356117020,1741909985969,-500.0,0.00026477,3]
[356117021,1741909985978,-500.0,0.00026477,3]
[356117022,1741909985988,-556.69,0.00026477,3]
[356117023,1741909985998,-500.0,0.00026477,3]
[356117024,1741909986008,-1075.01,0.00026477,3]
[356117025,1741909986017,-500.0,0.00026477,3]
[356117026,1741909986026,-500.0,0.00026477,3]
[356117027,1741909986036,-2046.3,0.00026477,3]
[356117028,1741909986045,-500.0,0.00026477,3]
[356117029,1741909986055,-500.0,0.00026477,3]
[356117030,1741909986064,-552.3436898,0.00026477,3]
[356117031,1741909986073,-500.0,0.00026477,3]
[356117032,1741909986082,-500.0,0.00026477,3]
[356117033,1741909986092,-574.02,0.00026477,3]
[356117034,1741909986102,-500.0,0.00026477,3]
[356117035,1741909986111,-1112.24,0.00026477,3]
[356117036,1741909986120,-500.0,0.00026477,3]
[356117037,1741909986129,-566.64,0.00026477,3]
[356117038,1741909986138,-500.0,0.00026477,3]
[356117039,1741909986147,-500.0,0.00026477,3]
[356117040,1741909986156,-500.0,0.00026477,3]
[356117041,1741909986165,-354.7,0.00026477,3]
[356117042,1741909986175,-1293.55,0.00026477,3]
[356117043,1741909986184,-2132.45,0.00026477,3]
[356117044,1741909986194,-500.0,0.00026477,3]
[356117045,1741909986203,-500.0,0.00026477,3]
[356117046,1741909986212,-348.89976331,0.00026477,3]
[356117047,1741909986221,-500.0,0.00026477,3]
[356117048,1741909986230,-500.0,0.00026477,3]
[356117049,1741909986239,-500.0,0.00026477,3]
[356117050,1741909986248,-500.0,0.00026477,3]
[356117051,1741909986257,-500.0,0.00026477,3]
[356117052,1741909986267,-1111.12,0.00026477,3]
[356117053,1741909986277,-500.0,0.00026477,3]
[356117054,1741909986286,-1817.19,0.00026477,3]
[356117055,1741909986295,-639.93,0.00026477,3]
[356117056,1741909986304,-500.0,0.00026477,3]
[356117057,1741909986315,-500.0,0.00026477,3]
[356117058,1741909986325,-500.0,0.00026477,3]
[356117059,1741909986336,-500.0,0.00026477,3]
[356117060,1741909986345,-525.47,0.00026477,3]
[356117061,1741909986355,-805.69,0.00026477,3]
[356117062,1741909986364,-500.0,0.00026477,3]
[356117063,1741909986374,-1134.12,0.00026477,3]
[356117064,1741909986384,-4021.1,0.00026477,3]
[356117065,1741909986393,-274.93943374,0.00026477,3]
[356117066,1741909986402,-1149.36,0.00026477,3]
[356117067,1741909986411,-686.34,0.00026477,3]
[356117068,1741909986420,-500.0,0.00026477,3]
[356117069,1741909986429,-1845.17,0.00026477,3]
[356117070,1741909986438,-500.0,0.00026477,3]
[356117071,1741909986447,-1365.3,0.00026477,3]
[356117072,1741909986457,-500.0,0.00026477,3]
[356117073,1741909986467,-500.0,0.00026477,3]
[356117074,1741909986479,-658.04,0.00026477,3]
[356117075,1741909986488,-1356.05,0.00026477,3]
[356117076,1741909986497,-835.91,0.00026477,3]
[356117077,1741909986507,-530.22,0.00026477,3]
[356117078,1741909986517,-517.5,0.00026477,3]
[356117079,1741909986527,-500.0,0.00026477,3]
[356117080,1741909986536,-1735.89,0.00026477,3]
[356117081,1741909986547,-718.97,0.00026486,3]
[356117082,1741909986556,-545.23191,0.00026488,7]
[356117083,1741909986565,-545.23192,0.00026488,7]
[356117084,1741909986575,-156.262202,0.00026488,7]
[356117085,1741909986587,-156.26221,0.00026488,7]
[356117086,1741909986596,-239.016,0.00026488,7]
[356117087,1741909986605,-239.016,0.00026488,7]
[356117088,1741909986615,-619.96,0.00026493,3]
[356117089,1741909986624,-599.39,0.00026493,3]
[356117090,1741909986633,-1580.05,0.00026493,3]
[356117091,1741909986643,-568.45,0.00026493,3]
[356117092,1741909986652,-596.06,0.00026493,3]
[356117093,1741909986661,-500.0,0.00026493,3]
[356117094,1741909986671,-575.02,0.00026493,3]
[356117095,1741909986680,-500.0,0.00026493,3]
[356117096,1741909986690,-500.0,0.00026493,3]
[356117097,1741909986699,-500.0,0.00026493,3]
[356117098,1741909986709,-614.09,0.00026493,3]
[356117099,1741909986718,-1905.32,0.00026493,3]
[356117100,1741909986728,-500.0,0.00026493,3]
[356117101,1741909986738,-500.0,0.00026493,3]
[356117102,1741909986747,-505.01,0.00026493,3]
[356117103,1741909986757,-1834.44,0.00026493,3]
[356117104,1741909986766,-500.0,0.00026493,3]
[356117105,1741909986776,-1115.1,0.00026493,3]
[356117106,1741909986785,-500.0,0.00026493,3]
[356117107,1741909986795,-1673.6,0.00026493,3]
[356117108,1741909986804,-1557.42,0.00026493,3]
[356117109,1741909986813,-512.73,0.00026493,3]
[356117110,1741909986823,-808.39,0.00026493,3]
[356117111,1741909986833,-500.0,0.00026493,3]
[356117112,1741909986843,-500.0,0.00026493,3]
[356117113,1741909986852,-500.0,0.00026493,3]
[356117114,1741909986861,-1409.73,0.00026493,3]
[356117115,1741909986871,-586.53,0.00026493,3]
[356117116,1741909986880,-649.95,0.00026493,3]
[356117117,1741909986889,-500.0,0.00026493,3]
[356117118,1741909986899,-708.03,0.00026493,3]
[356117119,1741909986908,-330.80703194,0.00026494,3]
[356117120,1741909986918,-500.0,0.00026494,3]
[356117121,1741909986927,-502.46229094,0.00026494,3]
[356117122,1741909986937,-500.0,0.00026494,3]
[356117123,1741909986947,-598.31775241,0.00026494,3]
[356117124,1741909986956,-879.64,0.00026494,3]
[356117125,1741909986965,-500.0,0.00026494,3]
[356117126,1741909986974,-500.0,0.00026494,3]
[356117127,1741909986985,-535.9,0.00026494,3]
[356117128,1741909986994,-621.59,0.00026494,3]
[356117129,1741909987004,-548.81,0.00026494,3]
[356117130,1741909987015,-4044.81,0.00026494,3]
[356117131,1741909987024,-500.0,0.00026494,3]
[356117132,1741909987034,-500.0,0.00026494,3]
[356117133,1741909987044,-1007.44,0.00026494,3]
[356117134,1741909987054,-1472.58,0.00026494,3]
[356117135,1741909987064,-624.43308642,0.00026494,3]
[356117136,1741909987074,-1336.48,0.00026494,3]
[356117137,1741909987084,-1207.46,0.00026494,3]
[356117138,1741909987094,-1240.71,0.00026494,3]
[356117139,1741909987104,-500.0,0.00026494,3]
[356117140,1741909987113,-1560.68,0.00026494,3]
[356117141,1741909987122,-500.0,0.00026494,3]
[356117142,1741909987132,-500.0,0.00026494,3]
[356117143,1741909987142,-1715.23,0.00026494,3]
[356117144,1741909987152,-500.0,0.00026494,3]
[356117145,1741909987161,-500.0,0.00026494,3]
[356117146,1741909987171,-500.0,0.00026494,3]
[356117147,1741909987181,-500.0,0.00026494,3]
[356117148,1741909987192,-500.0,0.00026494,3]
[356117149,1741909987202,-500.0,0.00026494,3]
[356117150,1741909987212,-866.31,0.00026494,3]
[356117151,1741909987223,-528.68,0.00026494,3]
[356117152,1741909987233,-500.0,0.00026494,3]
[356117153,1741909987242,-1282.18,0.00026494,3]
[356117154,1741909987252,-500.0,0.00026494,3]
[356117155,1741909987261,-521.16,0.00026494,3]
[356117156,1741909987272,-1671.92,0.00026494,3]
[356117157,1741909987281,-409.73608246,0.00026494,3]
[356117158,1741909987290,-1037.45,0.00026494,3]
[356117159,1741909987299,-630.13,0.00026494,3]
[356117160,1741909987308,-570.0,0.00026494,3]
[356117161,1741909987317,-500.0,0.00026494,3]
[356117162,1741909987327,-500.0,0.00026494,3]
[356117163,1741909987339,-359.18296272,0.00026494,3]
[356117164,1741909987349,-774.3,0.00026494,3]
[356117165,1741909987358,-1515.34,0.00026494,3]
[356117166,1741909987368,-929.37,0.00026494,3]
[356117167,1741909987377,-870.82,0.00026494,3]
[356117168,1741909987387,-592.52,0.00026494,3]
[356117169,1741909987397,-531.66,0.00026494,3]
[356117170,1741909987407,-500.0,0.00026495,3]
[356117171,1741909987417,-500.0,0.00026495,3]
[356117172,1741909987426,-627.17,0.00026495,3]
[356117173,1741909987435,-515.44,0.00026495,3]
[356117174,1741909987444,-500.0,0.00026495,3]
[356117175,1741909987454,-500.0,0.00026495,3]
[356117176,1741909987463,-909.42,0.00026495,3]
[356117177,1741909987475,-247.61667633,0.00026495,3]
[356117178,1741909987485,-767.58,0.00026495,3]
[356117179,1741909987494,-500.0,0.00026495,3]
[356117180,1741909987503,-605.42,0.00026495,3]
[356117181,1741909987512,-500.0,0.00026495,3]
[356117182,1741909987522,-500.0,0.00026495,3]
[356117183,1741909987532,-500.0,0.00026495,3]
[356117184,1741909987541,-670.75,0.00026495,3]
[356117185,1741909987552,-500.0,0.00026495,3]
[356117186,1741909987562,-500.0,0.00026495,3]
[356117187,1741909987572,-500.0,0.00026495,3]
[356117188,1741909987583,-500.0,0.00026495,3]
[356117189,1741909987593,-500.0,0.00026495,3]
[356117190,1741909987603,-500.0,0.00026495,3]
[356117191,1741909987612,-500.0,0.00026495,3]
[356117192,1741909987622,-560.56341135,0.00026495,3]
[356117193,1741909987632,-1567.35,0.00026495,3]
[356117194,1741909987642,-500.0,0.00026495,3]
[356117195,1741909987651,-500.0,0.00026495,3]
[356117196,1741909987660,-162.70537204,0.00026495,3]
[356117197,1741909987670,-644.21,0.00026495,3]
[356117198,1741909987681,-500.0,0.00026495,3]
[356117199,1741909987690,-1664.02,0.00026495,3]
[356117200,1741909987700,-500.0,0.00026495,3]
[356117201,1741909987710,-500.0,0.00026495,3]
[356117202,1741909987719,-500.0,0.00026495,3]
[356117203,1741909987728,-573.05195726,0.00026495,3]
[356117204,1741909987738,-968.14,0.00026495,3]
[356117205,1741909987748,-1046.93,0.00026495,3]
[356117206,1741909987757,-773.75,0.00026495,3]
[356117207,1741909987767,-500.0,0.00026495,3]
[356117208,1741909987777,-500.0,0.00026495,3]
[356117209,1741909987786,-500.0,0.00026495,3]
[356117210,1741909987796,-500.0,0.00026495,3]
[356117211,1741909987805,-500.0,0.00026495,3]
[356117212,1741909987815,-500.0,0.00026495,3]
[356117213,1741909987824,-500.0,0.00026495,3]
[356117214,1741909987836,-798.27,0.00026495,3]
[356117215,1741909987845,-500.0,0.00026495,3]
[356117216,1741909987855,-680.76,0.00026495,3]
[356117217,1741909987865,-500.0,0.00026495,3]
[356117218,1741909987874,-500.0,0.00026495,3]
[356117219,1741909987885,-500.0,0.00026495,3]
[356117220,1741909987895,-500.0,0.00026495,3]
[356117221,1741909987904,-500.0,0.00026495,3]
[356117222,1741909987915,-500.0,0.00026495,3]
[356117223,1741909987926,-1424.33,0.00026495,3]
[356117224,1741909987936,-500.0,0.00026495,3]
[356117225,1741909987945,-500.0,0.00026495,3]
[356117226,1741909987956,-500.0,0.00026495,3]
[356117227,1741909987965,-500.0,0.00026495,3]
[356117228,1741909987975,-500.0,0.00026495,3]
[356117229,1741909987986,-550.26,0.00026495,3]
[356117230,1741909987996,-500.0,0.00026495,3]
[356117231,1741909988006,-500.0,0.00026495,3]
[356117232,1741909988016,-748.01,0.00026495,3]
[356117233,1741909988026,-500.0,0.00026495,3]
[356117234,1741909988036,-500.0,0.00026495,3]
[356117235,1741909988046,-854.97,0.00026495,3]
[356117236,1741909988056,-500.0,0.00026495,3]
[356117237,1741909988066,-1135.48,0.00026495,3]
[356117238,1741909988076,-500.0,0.00026495,3]
[356117239,1741909988087,-1460.13,0.00026495,3]
[356117240,1741909988097,-500.0,0.00026495,3]
[356117241,1741909988106,-500.0,0.00026495,3]
[356117242,1741909988116,-500.0,0.00026495,3]
[356117243,1741909988126,-500.0,0.00026495,3]
[356117244,1741909988136,-539.91,0.00026495,3]
[356117245,1741909988146,-500.0,0.00026495,3]
[356117246,1741909988156,-500.0,0.00026495,3]
[356117247,1741909988166,-500.0,0.00026495,3]
[356117248,1741909988175,-500.0,0.00026495,3]
[356117249,1741909988185,-500.0,0.00026495,3]
[356117250,1741909988195,-500.0,0.00026495,3]
[356117251,1741909988205,-1590.08,0.00026495,3]
[356117252,1741909988215,-500.0,0.00026495,3]
[356117253,1741909988225,-500.0,0.00026495,3]
[356117254,1741909988235,-521.95,0.00026495,3]
[356117255,1741909988244,-1077.24,0.00026495,3]
[356117256,1741909988254,-500.0,0.00026495,3]
[356117257,1741909988265,-1570.33,0.00026495,3]
[356117258,1741909988275,-500.0,0.00026495,3]
[356117259,1741909988285,-500.0,0.00026495,3]
[356117260,1741909988296,-500.0,0.00026495,3]
[356117261,1741909988306,-1757.22,0.00026495,3]
[356117262,1741909988316,-500.0,0.00026495,3]
[356117263,1741909988326,-500.0,0.00026495,3]
[356117264,1741909988337,-1801.77,0.00026495,3]
[356117265,1741909988347,-500.0,0.00026495,3]
[356117266,1741909988357,-500.0,0.00026495,3]
[356117267,1741909988367,-500.0,0.00026495,3]
[356117268,1741909988377,-1126.34,0.00026495,3]
[356117269,1741909988387,-501.8,0.00026495,3]
[356117270,1741909988397,-500.0,0.00026495,3]
[356117271,1741909988409,-1962.2,0.00026495,3]
[356117272,1741909988419,-775.14,0.00026495,3]
[356117273,1741909988431,-500.0,0.00026495,3]
[356117274,1741909988441,-552.77,0.00026495,3]
[356117275,1741909988451,-500.0,0.00026495,3]
[356117276,1741909988462,-1313.89,0.00026495,3]
[356117277,1741909988475,-500.0,0.00026495,3]
[356117278,1741909988485,-500.0,0.00026495,3]
[356117279,1741909988495,-500.0,0.00026495,3]
[356117280,1741909988504,-500.0,0.00026495,3]
[356117281,1741909988515,-500.0,0.00026495,3]
[356117282,1741909988525,-500.0,0.00026495,3]
[356117283,1741909988535,-1156.75,0.00026495,3]
[356117284,1741909988545,-500.0,0.00026495,3]
[356117285,1741909988555,-827.88,0.00026495,3]
[356117286,1741909988566,-500.0,0.00026495,3]
[356117287,1741909988576,-500.0,0.00026495,3]
[356117288,1741909988587,-500.0,0.00026495,3]
[356117289,1741909988597,-895.24,0.00026495,3]
[356117290,1741909988607,-500.0,0.00026495,3]
[356117291,1741909988617,-1012.87,0.00026495,3]
[356117292,1741909988627,-1069.23,0.00026495,3]
[356117293,1741909988638,-605.55,0.00026495,3]
[356117294,1741909988648,-500.0,0.00026495,3]
[356117295,1741909988658,-1008.81,0.00026495,3]
[356117296,1741909988669,-866.31,0.00026495,3]
[356117297,1741909988679,-500.0,0.00026495,3]
[356117298,1741909988689,-500.0,0.00026495,3]
[356117299,1741909988699,-500.0,0.00026504,3]
[356117300,1741909988708,-500.0,0.00026504,3]
[356117301,1741909988718,-500.0,0.00026504,3]
[356117302,1741909988728,-500.0,0.00026504,3]
[356117303,1741909988738,-500.0,0.00026504,3]
[356117304,1741909988748,-527.55,0.00026504,3]
[356117305,1741909988758,-500.0,0.00026504,3]
[356117306,1741909988768,-500.0,0.00026504,3]
[356117307,1741909988778,-500.0,0.00026504,3]
[356117308,1741909988788,-862.02,0.00026504,3]
[356117309,1741909988798,-500.0,0.00026504,3]
[356117310,1741909988808,-1562.75,0.00026504,3]
[356117311,1741909988818,-500.0,0.00026504,3]
[356117312,1741909988828,-500.0,0.00026504,3]
[356117313,1741909988838,-500.0,0.00026504,3]
[356117314,1741909988848,-500.0,0.00026504,3]
[356117315,1741909988858,-500.0,0.00026504,3]
[356117316,1741909988868,-500.0,0.00026504,3]
[356117317,1741909988878,-500.0,0.00026504,3]
[356117318,1741909988887,-500.0,0.00026504,3]
[356117319,1741909988897,-500.0,0.00026504,3]
[356117320,1741909988907,-500.0,0.00026504,3]
[356117321,1741909988916,-526.4,0.00026504,3]
[356117322,1741909988926,-500.0,0.00026504,3]
[356117323,1741909988936,-886.28,0.00026504,3]
[356117324,1741909988947,-500.0,0.00026504,3]
[356117325,1741909988957,-500.0,0.00026504,3]
[356117326,1741909988967,-1148.96,0.00026504,3]
[356117327,1741909988978,-500.0,0.00026504,3]
[356117328,1741909988988,-500.0,0.00026504,3]
[356117329,1741909988998,-521.42,0.00026504,3]
[356117330,1741909989008,-500.0,0.00026504,3]
[356117331,1741909989018,-500.0,0.00026504,3]
[356117332,1741909989028,-535.24,0.00026504,3]
[356117333,1741909989038,-500.0,0.00026504,3]
[356117334,1741909989048,-500.0,0.00026504,3]
[356117335,1741909989058,-500.0,0.00026504,3]
[356117336,1741909989068,-500.0,0.00026504,3]
[356117337,1741909989079,-630.29,0.00026504,3]
[356117338,1741909989089,-500.0,0.00026504,3]
[356117339,1741909989098,-636.65,0.00026504,3]
[356117340,1741909989109,-500.0,0.00026504,3]
[356117341,1741909989119,-760.49,0.00026504,3]
[356117342,1741909989134,-500.0,0.00026504,3]
[356117343,1741909989144,-500.0,0.00026504,3]
[356117344,1741909989154,-766.74,0.00026504,3]
[356117345,1741909989165,-500.0,0.00026504,3]
[356117346,1741909989175,-1057.73,0.00026504,3]
[356117347,1741909989185,-500.0,0.00026504,3]
[356117348,1741909989195,-500.0,0.00026504,3]
[356117349,1741909989205,-760.28,0.00026504,3]
[356117350,1741909989215,-972.22,0.00026504,3]
[356117351,1741909989225,-500.0,0.00026504,3]
[356117352,1741909989235,-1260.65,0.00026504,3]
[356117353,1741909989245,-500.0,0.00026504,3]
[356117354,1741909989256,-500.0,0.00026504,3]
[356117355,1741909989268,-500.0,0.00026504,3]
[356117356,1741909989278,-702.58,0.00026504,3]
[356117357,1741909989288,-492.47865769,0.00026504,3]
[356117358,1741909989299,-500.0,0.00026504,3]
[356117359,1741909989309,-500.0,0.00026504,3]
[356117360,1741909989319,-500.0,0.00026504,3]
[356117361,1741909989329,-556.69,0.00026504,3]
[356117362,1741909989341,-500.0,0.00026504,3]
[356117363,1741909989351,-1075.01,0.00026504,3]
[356117364,1741909989361,-500.0,0.00026504,3]
[356117365,1741909989371,-500.0,0.00026504,3]
[356117366,1741909989382,-2046.3,0.00026504,3]
[356117367,1741909989391,-500.0,0.00026504,3]
[356117368,1741909989402,-500.0,0.00026504,3]
[356117369,1741909989412,-500.0,0.00026504,3]
[356117370,1741909989422,-500.0,0.00026504,3]
[356117371,1741909989432,-574.02,0.00026504,3]
[356117372,1741909989442,-525.17259822,0.00026504,3]
[356117373,1741909989452,-1112.24,0.00026504,3]
[356117374,1741909989463,-500.0,0.00026504,3]
[356117375,1741909989476,-566.64,0.00026504,3]
[356117376,1741909989486,-500.0,0.00026504,3]
[356117377,1741909989496,-500.0,0.00026504,3]
[356117378,1741909989506,-500.0,0.00026504,3]
[356117379,1741909989518,-1293.55,0.00026504,3]
[356117380,1741909989528,-2132.45,0.00026504,3]
[356117381,1741909989539,-500.0,0.00026504,3]
[356117382,1741909989548,-500.0,0.00026504,3]
[356117383,1741909989560,-500.0,0.00026504,3]
[356117384,1741909989570,-500.0,0.00026504,3]
[356117385,1741909989580,-500.0,0.00026504,3]
[356117386,1741909989591,-500.0,0.00026504,3]
[356117387,1741909989601,-500.0,0.00026504,3]